bitfinex-derivatives/quotes_BTCF0:USTF0_20241203
["timestamp","ask_amount","ask_price","bid_price","bid_amount"]
[1733247950085,0.0131,95555.0,95542.0,0.76399138]
[1733247950086,0.3608,95567.0,95562.0,0.052303]
[1733247950285,0.3608,95579.0,95578.0,0.052295]
[1733247951089,0.36089954,95579.0,95578.0,0.052295]
[1733247951586,0.36389954,95579.0,95578.0,0.052295]
[1733247951888,0.36689954,95579.0,95578.0,0.052295]
[1733247952287,0.36589954,95579.0,95578.0,0.052295]
[1733247952893,0.36389954,95579.0,95578.0,0.052295]
[1733247953294,0.36089954,95579.0,95578.0,0.052295]
[1733247954188,9.954e-05,95579.0,95578.0,0.054295]
[1733247954394,1.9802,96185.0,95578.0,0.054295]
[1733247954395,0.3608,95600.0,95599.0,0.052283]
[1733247954797,0.3608,95600.0,95590.0,0.11564831]
[1733247954798,0.41464886,95608.0,95607.0,0.052279]
[1733247954991,0.36236986,95608.0,95607.0,0.052279]
[1733247955389,0.36247532,95608.0,95607.0,0.052279]
[1733247955600,0.41475332,95608.0,95607.0,0.052279]
[1733247956402,0.42375332,95608.0,95607.0,0.053279]
[1733247956807,0.42875332,95608.0,95607.0,0.053279]
[1733247958293,0.42875332,95608.0,95607.0,0.001]
[1733247958594,0.37647532,95608.0,95607.0,0.053279]
[1733247959005,0.42875332,95608.0,95607.0,0.053279]
[1733247960808,0.42875332,95608.0,95607.0,0.001]
[1733247962810,0.42718346,95608.0,95607.0,0.001]
[1733247963115,0.05229,95589.0,95588.0,0.052289]
[1733247963317,0.05229,95589.0,95573.0,0.05770091]
[1733247963318,0.3608,95597.0,95596.0,0.052285]
[1733247963502,0.05228,95606.0,95605.0,0.052279]
[1733247964311,0.0417997,95606.0,95605.0,0.052279]
[1733247965107,0.0417997,95606.0,95597.0,0.033]
[1733247965108,0.36990546,95608.0,95607.0,0.052279]
[1733247965606,0.41318346,95608.0,95607.0,0.052319]
[1733247966198,0.42218346,95608.0,95607.0,0.053319]
[1733247968808,0.42718346,95608.0,95607.0,0.053319]
[1733247971809,0.42718346,95608.0,95607.0,0.00104]
[1733247972208,0.57782346,95608.0,95607.0,0.00104]
[1733247972917,0.57782346,95608.0,95607.0,0.053319]
[1733247973306,0.42718346,95608.0,95607.0,0.053319]
[1733247973502,0.57782346,95608.0,95607.0,0.053319]
[1733247974611,0.42718346,95608.0,95607.0,0.053319]
[1733247975417,0.42718346,95608.0,95607.0,0.00104]
[1733247977712,0.42718346,95608.0,95607.0,0.053319]
[1733247977908,0.57782346,95608.0,95607.0,0.053319]
[1733247978510,0.42718346,95608.0,95607.0,0.053319]
[1733247981223,0.42718346,95608.0,95607.0,0.00104]
[1733247981520,0.42718346,95608.0,95607.0,0.053319]
[1733247981521,0.37490546,95608.0,95607.0,0.053319]
[1733247982325,0.42718346,95608.0,95607.0,0.053319]
[1733247984721,0.42718346,95608.0,95607.0,0.00104]
[1733247984919,0.5234657,95608.0,95607.0,0.00104]
[1733247985323,0.52347266,95608.0,95607.0,0.00104]
[1733247985522,0.52347266,95608.0,95590.0,0.3608]
[1733247985523,0.052284,95597.0,95596.0,0.052285]
[1733247987430,0.054284,95597.0,95596.0,0.052285]
[1733247988328,0.058284,95597.0,95596.0,0.052285]
[1733247990227,0.052287,95592.0,95591.0,0.052286]
[1733247991024,0.3608,95592.0,95586.0,0.05229]
[1733247991215,0.3608,95592.0,95583.0,0.00072]
[1733247991216,0.15044,95591.0,95583.0,0.00072]
[1733247991423,0.15044,95591.0,95583.0,0.052291]
[1733247991424,0.052293,95584.0,95583.0,0.052291]
[1733247991624,0.052293,95584.0,95583.0,0.0831786]
[1733247992120,0.15044,95591.0,95583.0,0.0831786]
[1733247992326,0.052289,95590.0,95589.0,0.052288]
[1733247993232,0.15044,95593.0,95592.0,0.052287]
[1733247993528,0.202726,95593.0,95592.0,0.052287]
[1733247994529,0.203726,95593.0,95592.0,0.052287]
[1733247994930,0.205726,95593.0,95592.0,0.052287]
[1733247995338,0.30202585,95593.0,95592.0,0.052287]
[1733247996836,0.003,95593.0,95592.0,0.052287]
[1733247998637,0.055286,95593.0,95592.0,0.052287]
[1733247998828,0.003,95593.0,95583.0,0.0316076]
[1733247999029,0.052291,95585.0,95584.0,0.052289]
[1733247999935,0.052288,95590.0,95589.0,0.052287]
[1733248000327,0.052288,95590.0,95589.0,0.052327]
[1733248002434,0.052288,95590.0,95589.0,4e-05]
[1733248002846,0.1485989,95590.0,95589.0,4e-05]
[1733248003933,0.052288,95590.0,95589.0,4e-05]
[1733248006636,0.14860602,95590.0,95589.0,4e-05]
[1733248008141,0.052288,95590.0,95589.0,4e-05]
[1733248008944,0.052297,95574.0,95573.0,0.00010391]
[1733248009132,0.51124,95574.0,95573.0,0.05240091]
[1733248009340,0.3608,95574.0,95573.0,0.05240091]
[1733248009535,0.052287,95594.0,95593.0,0.052285]
[1733248009744,0.117479,95607.0,95593.0,0.052285]
[1733248009745,0.3608,95623.0,95607.0,0.052279]
[1733248009943,0.39511595,95611.0,95607.0,0.052279]
[1733248010145,0.05238346,95608.0,95607.0,1.552279]
[1733248010339,0.052279,95607.0,95606.0,0.03080735]
[1733248010649,0.15044,95607.0,95594.0,0.116485]
[1733248010840,0.15044,95607.0,95601.0,0.052282]
[1733248011142,0.052282,95602.0,95601.0,0.052282]
[1733248012047,0.15044,95606.0,95596.0,0.052284]
[1733248012048,0.052285,95597.0,95596.0,0.052284]
[1733248012943,0.3608,95597.0,95594.0,0.0317]
[1733248013137,0.052289,95589.0,95588.0,0.052289]
[1733248013648,0.052287,95592.0,95591.0,0.052285]
[1733248013948,0.15044,95594.0,95593.0,0.052286]
[1733248014244,0.202726,95594.0,95593.0,0.052326]
[1733248014440,0.052286,95594.0,95593.0,0.052326]
[1733248014748,0.002,95597.0,95596.0,0.052285]
[1733248015243,0.002,95597.0,95596.0,0.052325]
[1733248016042,0.51124,95607.0,95606.0,0.052279]
[1733248016241,0.72004589,95607.0,95606.0,0.052279]
[1733248016441,0.45709082,95607.0,95606.0,0.052319]
[1733248016647,0.50936982,95607.0,95606.0,0.052319]
[1733248017744,0.51336982,95607.0,95606.0,0.052319]
[1733248018136,0.52236982,95607.0,95606.0,0.053319]
[1733248019946,0.52236982,95607.0,95606.0,0.00104]
[1733248021043,0.05229,95586.0,95581.0,0.0652]
[1733248021249,0.052292,95585.0,95584.0,0.052291]
[1733248021640,0.12910543,95588.0,95587.0,0.05229]
[1733248021841,0.18139443,95588.0,95587.0,0.05229]
[1733248022056,0.18139397,95588.0,95587.0,0.05233]
[1733248022944,0.18139262,95588.0,95587.0,0.05233]
[1733248023246,0.085089,95588.0,95587.0,0.05233]
[1733248023546,0.3608,95597.0,95587.0,0.00104]
[1733248023753,0.3608,95597.0,95587.0,0.10615949]
[1733248023949,0.15024,95599.0,95598.0,0.052284]
[1733248024349,0.15024,95599.0,95598.0,0.052324]
[1733248024560,0.052281,95604.0,95603.0,0.052281]
[1733248024561,0.202521,95604.0,95603.0,0.052281]
[1733248024853,0.202521,95604.0,95603.0,0.052321]
[1733248025653,0.060281,95604.0,95603.0,0.053321]
[1733248026652,0.063281,95604.0,95603.0,0.053321]
[1733248028947,0.011,95604.0,95603.0,0.053321]
[1733248029449,0.06328,95604.0,95603.0,0.053321]
[1733248031149,0.011,95604.0,95603.0,0.053321]
[1733248034362,0.3608,95626.0,95607.0,0.052279]
[1733248034553,0.052247,95665.0,95607.0,0.052279]
[1733248034554,0.0026,95634.0,95616.0,0.10511949]
[1733248034861,0.36236914,95658.0,95635.0,0.052263]
[1733248034862,0.0026,95656.0,95635.0,0.052263]
[1733248035163,0.052252,95656.0,95655.0,0.052252]
[1733248035454,0.41317901,95656.0,95655.0,4e-05]
[1733248035658,0.41317901,95656.0,95655.0,0.052292]
[1733248035863,0.36092701,95656.0,95655.0,0.052292]
[1733248036054,0.00012701,95656.0,95655.0,0.052292]
[1733248036656,0.00912701,95656.0,95655.0,0.053292]
[1733248037157,0.00012701,95656.0,95655.0,0.052292]
[1733248037353,0.01412701,95656.0,95655.0,0.054292]
[1733248037563,0.1814,95675.0,95674.0,0.052242]
[1733248037754,0.08237615,95679.0,95674.0,0.052242]
[1733248037949,0.03013615,95679.0,95674.0,0.052282]
[1733248038259,0.413041,95676.0,95674.0,0.052282]
[1733248038564,0.09627098,95675.0,95674.0,0.052242]
[1733248038758,0.09627098,95675.0,95668.0,0.052245]
[1733248038957,0.052244,95670.0,95668.0,0.052245]
[1733248039163,0.09622246,95669.0,95668.0,0.052245]
[1733248040159,0.09622246,95669.0,95666.0,0.05953511]
[1733248040160,4.852e-05,95675.0,95673.0,0.052243]
[1733248040661,0.09622089,95674.0,95673.0,0.052243]
[1733248040961,4.852e-05,95675.0,95673.0,0.052243]
[1733248041364,4.852e-05,95675.0,95674.0,4e-05]
[1733248043165,4.852e-05,95675.0,95674.0,0.00104]
[1733248043662,4.852e-05,95675.0,95674.0,0.03254]
[1733248044856,0.00104852,95675.0,95674.0,0.03254]
[1733248045167,0.00104852,95675.0,95674.0,0.1827]
[1733248045859,4.852e-05,95675.0,95674.0,0.1827]
[1733248046055,4.852e-05,95675.0,95674.0,0.0219505]
[1733248046658,0.15020852,95675.0,95666.0,0.02943511]
[1733248046864,0.413046,95667.0,95666.0,0.02943511]
[1733248047071,0.3608,95667.0,95657.0,0.052251]
[1733248047264,0.3608,95658.0,95657.0,0.15737049]
[1733248047460,0.3608,95658.0,95657.0,0.052251]
[1733248048067,0.3608,95658.0,95652.0,0.03015294]
[1733248048268,0.3608,95658.0,95643.0,0.052258]
[1733248048467,0.052259,95643.0,95641.0,0.05234176]
[1733248048770,0.3608,95647.0,95646.0,0.052257]
[1733248049073,0.3608,95647.0,95646.0,0.052297]
[1733248049768,0.3608,95647.0,95646.0,4e-05]
[1733248049976,0.3618,95647.0,95646.0,4e-05]
[1733248051477,0.3618,95647.0,95633.0,0.00156825]
[1733248051680,0.413064,95634.0,95633.0,0.00156825]
[1733248051973,0.562984,95634.0,95633.0,0.00156825]
[1733248052871,0.562984,95634.0,95633.0,0.00456825]
[1733248053067,0.052273,95618.0,95617.0,0.052273]
[1733248053973,0.052274,95615.0,95614.0,7.877e-05]
[1733248055166,0.052274,95615.0,95614.0,0.00707877]
[1733248056170,0.052274,95615.0,95614.0,0.06835377]
[1733248056668,0.052274,95615.0,95614.0,0.01607877]
[1733248058668,0.052274,95615.0,95614.0,0.06135377]
[1733248058875,0.055274,95615.0,95614.0,0.06135377]
[1733248059265,0.055274,95615.0,95614.0,0.05235377]
[1733248059473,0.057274,95615.0,95614.0,0.05235377]
[1733248059865,0.055274,95615.0,95614.0,0.05235377]
[1733248060065,0.057274,95615.0,95614.0,0.05235377]
[1733248060467,0.054274,95615.0,95614.0,0.05235377]
[1733248060667,0.055274,95615.0,95614.0,0.05235377]
[1733248060964,0.001,95615.0,95614.0,0.05235377]
[1733248061166,0.003,95615.0,95614.0,0.05235377]
[1733248061666,0.055274,95615.0,95614.0,7.877e-05]
[1733248062180,0.204274,95615.0,95614.0,0.00407877]
[1733248062379,0.204274,95615.0,95596.0,0.0105]
[1733248062676,0.204274,95615.0,95582.0,0.0053]
[1733248062677,0.413084,95598.0,95586.0,0.03402598]
[1733248062969,0.413084,95598.0,95582.0,0.03078782]
[1733248062970,0.052292,95583.0,95582.0,0.08307982]
[1733248063173,0.40613324,95583.0,95582.0,0.03078782]
[1733248063366,0.45842524,95583.0,95582.0,0.03078782]
[1733248063676,0.45842524,95583.0,95568.0,0.3608]
[1733248063877,0.052297,95575.0,95574.0,0.052297]
[1733248064171,0.052297,95575.0,95574.0,0.02093308]
[1733248064578,0.052297,95575.0,95574.0,0.07323008]
[1733248065278,0.052297,95575.0,95574.0,0.02093308]
[1733248065474,0.052299,95569.0,95568.0,0.3678]
[1733248065779,0.052299,95569.0,95568.0,0.007]
[1733248066566,0.3608,95570.0,95568.0,0.007]
[1733248066766,0.3608,95570.0,95568.0,0.0593]
[1733248066767,0.15,95569.0,95568.0,0.0593]
[1733248067074,0.15,95569.0,95568.0,0.0613]
[1733248067470,0.052299,95569.0,95568.0,0.0613]
[1733248067671,0.3608,95570.0,95569.0,0.052299]
[1733248067873,0.3618,95570.0,95569.0,0.052299]
[1733248069075,0.414099,95570.0,95569.0,0.052299]
[1733248069475,0.414099,95570.0,95569.0,0.061299]
[1733248069978,0.413099,95570.0,95569.0,0.061299]
[1733248070682,0.413099,95570.0,95569.0,0.067299]
[1733248070883,0.413099,95570.0,95569.0,0.015]
[1733248072976,0.4131727,95570.0,95569.0,0.015]
[1733248073379,0.052302,95564.0,95563.0,0.00010451]
[1733248073580,0.4131727,95570.0,95563.0,0.00010451]
[1733248073581,0.3608737,95570.0,95563.0,0.00010451]
[1733248073781,0.3608737,95570.0,95567.0,0.0523]
[1733248073782,0.052301,95568.0,95567.0,0.0523]
[1733248073985,0.3608737,95570.0,95569.0,0.052299]
[1733248075684,0.51084,95588.0,95587.0,0.05229]
[1733248076187,0.51084,95588.0,95587.0,0.05233]
[1733248076382,0.413089,95588.0,95587.0,0.05233]
[1733248076591,0.36092148,95588.0,95587.0,0.05233]
[1733248076979,0.36292148,95588.0,95587.0,0.05233]
[1733248077179,0.36492148,95588.0,95587.0,0.05233]
[1733248077982,0.41721048,95588.0,95587.0,0.05233]
[1733248078587,0.41521048,95588.0,95587.0,0.05233]
[1733248078790,0.56509048,95588.0,95587.0,0.05233]
[1733248078984,0.56409048,95588.0,95587.0,0.05233]
[1733248079295,0.56609048,95588.0,95587.0,0.05233]
[1733248079682,0.56309048,95588.0,95587.0,0.05233]
[1733248079986,0.51180148,95588.0,95587.0,0.05233]
[1733248080585,0.51380148,95588.0,95587.0,0.05233]
[1733248080881,0.36392148,95588.0,95587.0,0.05233]
[1733248081285,0.36292148,95588.0,95587.0,0.05233]
[1733248081492,0.36592148,95588.0,95587.0,0.05233]
[1733248081890,0.00512148,95588.0,95587.0,0.05233]
[1733248082091,0.00312148,95588.0,95587.0,0.05233]
[1733248082297,0.14988,95613.0,95612.0,0.052276]
[1733248082591,0.3608,95617.0,95616.0,0.052274]
[1733248082990,0.413073,95617.0,95616.0,4e-05]
[1733248083997,0.567953,95617.0,95616.0,4e-05]
[1733248084901,0.575953,95617.0,95616.0,0.053314]
[1733248085193,0.3738,95617.0,95616.0,0.053314]
[1733248086597,0.426073,95617.0,95616.0,0.00104]
[1733248086787,0.575913,95617.0,95616.0,0.00104]
[1733248088902,0.52364,95617.0,95616.0,0.053314]
[1733248090299,0.013,95617.0,95616.0,0.053314]
[1733248090495,0.39564,95649.0,95634.0,0.052264]
[1733248090496,0.14984,95635.0,95634.0,0.052264]
[1733248090694,0.14984,95635.0,95624.0,0.052269]
[1733248090695,0.052261,95639.0,95638.0,0.052261]
[1733248091092,0.3608,95645.0,95641.0,0.05226]
[1733248091295,0.14984,95643.0,95641.0,0.05226]
[1733248091489,0.05382916,95642.0,95641.0,0.0523]
[1733248092804,0.05582916,95642.0,95641.0,0.0523]
[1733248093096,0.05682916,95642.0,95641.0,0.0523]
[1733248094597,0.05482916,95642.0,95641.0,4e-05]
[1733248095303,0.05582916,95642.0,95641.0,4e-05]
[1733248095899,0.05582916,95642.0,95641.0,0.0523]
[1733248096094,0.05482916,95642.0,95641.0,0.0523]
[1733248097002,0.00356916,95642.0,95641.0,0.0523]
[1733248097302,0.05582916,95642.0,95641.0,0.0523]
[1733248098101,0.05426,95642.0,95641.0,0.0523]
[1733248098399,0.002,95642.0,95641.0,0.0523]
[1733248098999,0.052259,95643.0,95641.0,4e-05]
[1733248099202,0.3608,95645.0,95644.0,0.052258]
[1733248099508,0.413058,95645.0,95644.0,0.052298]
[1733248100605,0.3608,95645.0,95644.0,0.052298]
[1733248101916,0.3628,95645.0,95644.0,0.052298]
[1733248102416,0.3628,95645.0,95644.0,0.08195617]
[1733248105412,0.3608,95665.0,95664.0,0.052247]
[1733248105618,0.3608,95677.0,95664.0,0.052247]
[1733248105807,0.3608,95677.0,95671.0,0.052244]
[1733248106007,0.3608,95677.0,95671.0,0.052284]
[1733248106317,0.3608,95677.0,95676.0,0.052241]
[1733248106708,0.3608,95677.0,95676.0,0.052281]
[1733248107213,0.3608,95686.0,95676.0,0.052281]
[1733248107516,0.3608,95686.0,95685.0,0.052276]
[1733248108419,0.3608,95686.0,95685.0,0.08185528]
[1733248108725,0.3608,95686.0,95685.0,0.08285528]
[1733248109024,0.3648,95686.0,95685.0,0.08285528]
[1733248110026,0.3648,95686.0,95685.0,0.053276]
[1733248110225,0.417035,95686.0,95685.0,0.053276]
[1733248110521,0.417035,95686.0,95685.0,0.00104]
[1733248110713,0.569635,95686.0,95685.0,0.00204]
[1733248112425,0.420035,95686.0,95685.0,0.00204]
[1733248112825,0.569595,95686.0,95685.0,0.054276]
[1733248118834,0.569595,95686.0,95685.0,0.00204]
[1733248119036,0.420035,95686.0,95685.0,0.00204]
[1733248119227,0.569595,95686.0,95685.0,0.00204]
[1733248120227,0.420035,95686.0,95685.0,0.00204]
[1733248120434,0.569595,95686.0,95685.0,0.00204]
[1733248121130,0.3678,95686.0,95685.0,0.054276]
[1733248121326,0.007,95686.0,95685.0,0.054276]
[1733248123125,0.1,95700.0,95685.0,0.054276]
[1733248123126,0.1,95700.0,95699.0,0.052228]
[1733248123530,0.1,95700.0,95699.0,0.052268]
[1733248124431,0.1,95700.0,95699.0,0.053268]
[1733248124838,0.106,95700.0,95699.0,0.053268]
[1733248126440,0.1046,95784.0,95717.0,0.052219]
[1733248126441,0.05378627,95718.0,95717.0,0.052219]
[1733248126833,0.05378627,95718.0,95717.0,0.052259]
[1733248128142,0.05378627,95718.0,95717.0,0.054259]
[1733248128539,0.00156827,95718.0,95717.0,0.054259]
[1733248130240,0.3608,95726.0,95725.0,0.052214]
[1733248130545,0.3608,95726.0,95725.0,0.052254]
[1733248131739,0.3608,95726.0,95725.0,0.053254]
[1733248132336,0.0633,95739.0,95725.0,0.053254]
[1733248132643,0.0633,95739.0,95737.0,0.052208]
[1733248133241,0.115507,95739.0,95738.0,4e-05]
[1733248133542,0.0633,95739.0,95738.0,4e-05]
[1733248133742,0.115507,95739.0,95738.0,4e-05]
[1733248133934,0.0633,95739.0,95738.0,4e-05]
[1733248134337,0.0633,95739.0,95738.0,0.00104]
[1733248135739,0.0633,95739.0,95738.0,0.00204]
[1733248136937,0.0633,95739.0,95738.0,0.00104]
[1733248137333,0.052204,95744.0,95738.0,0.00104]
[1733248137334,0.3608,95745.0,95738.0,0.03187341]
[1733248137650,0.413003,95745.0,95744.0,0.052244]
[1733248137948,0.51012,95745.0,95744.0,0.052244]
[1733248138654,0.3608,95745.0,95744.0,0.052244]
[1733248139149,0.51012,95745.0,95744.0,0.052244]
[1733248139740,0.51012,95745.0,95744.0,0.053244]
[1733248139938,0.562323,95745.0,95744.0,0.053244]
[1733248140334,0.562323,95745.0,95744.0,0.00204]
[1733248140537,0.51012,95745.0,95724.0,0.3608]
[1733248140735,0.05221,95732.0,95731.0,0.05221]
[1733248140933,0.3608,95735.0,95725.0,0.052214]
[1733248140934,0.052214,95727.0,95725.0,0.052214]
[1733248141142,0.052214,95727.0,95726.0,0.052214]
[1733248141341,0.51008,95735.0,95724.0,0.39044489]
[1733248141342,0.51008,95735.0,95724.0,0.02964489]
[1733248141539,0.14928,95735.0,95734.0,0.052209]
[1733248141839,0.14928,95735.0,95734.0,0.052249]
[1733248142040,0.447325,95743.0,95734.0,0.052249]
[1733248142041,0.14928,95742.0,95734.0,0.052249]
[1733248142249,0.14928,95742.0,95741.0,0.052205]
[1733248142447,0.14928,95742.0,95741.0,0.052245]
[1733248142641,0.413003,95745.0,95741.0,0.052245]
[1733248142642,0.413003,95745.0,95744.0,0.052204]
[1733248142837,0.562283,95745.0,95744.0,0.052204]
[1733248143037,0.51008,95745.0,95744.0,0.052244]
[1733248144245,0.51208,95745.0,95744.0,0.053244]
[1733248144448,0.51208,95745.0,95744.0,0.054244]
[1733248144847,0.51208,95745.0,95744.0,0.08384368]
[1733248145044,0.564283,95745.0,95744.0,0.03163968]
[1733248145846,0.052216,95722.0,95720.0,0.0105]
[1733248146051,0.052217,95721.0,95720.0,0.052216]
[1733248146242,0.083317,95721.0,95720.0,0.052216]
[1733248147056,0.05222,95716.0,95715.0,0.052219]
[1733248149164,0.05522,95716.0,95715.0,0.052219]
[1733248149748,0.003,95716.0,95715.0,0.052219]
[1733248151850,0.003,95716.0,95715.0,0.053219]
[1733248152248,0.052219,95716.0,95715.0,0.054219]
[1733248152958,0.054219,95716.0,95715.0,0.053219]
[1733248153161,0.054219,95716.0,95715.0,0.052219]
[1733248153361,0.002,95716.0,95715.0,0.052219]
[1733248153662,0.054219,95716.0,95715.0,0.052219]
[1733248153955,0.002,95716.0,95701.0,0.00072]
[1733248154263,0.002,95716.0,95700.0,0.3608]
[1733248154264,0.052226,95703.0,95700.0,0.3608]
[1733248154444,0.3608,95707.0,95700.0,0.3608]
[1733248154445,0.052227,95701.0,95700.0,0.3608]
[1733248154649,0.052228,95700.0,95699.0,0.05231683]
[1733248155063,0.052228,95700.0,95699.0,8.883e-05]
[1733248155262,0.052228,95700.0,95699.0,0.03084169]
[1733248155557,0.51008,95719.0,95718.0,0.052218]
[1733248155952,0.51008,95719.0,95718.0,0.052258]
[1733248156257,0.201497,95719.0,95718.0,0.052258]
[1733248156459,0.0948,95729.0,95718.0,4e-05]
[1733248156666,0.0026,95757.0,95728.0,0.052213]
[1733248156962,0.0522,95752.0,95751.0,0.052199]
[1733248157150,0.41783803,95760.0,95746.0,0.052203]
[1733248157151,0.052204,95747.0,95746.0,0.052203]
[1733248158059,0.0616,95759.0,95742.0,0.3608]
[1733248158259,0.2454267,95758.0,95742.0,0.3608]
[1733248158454,0.2454267,95758.0,95757.0,0.052197]
[1733248158455,0.201476,95758.0,95757.0,0.052197]
[1733248158655,0.09614663,95758.0,95757.0,0.052197]
[1733248159162,0.0331,95769.0,95754.0,0.3608]
[1733248159163,0.0655,95769.0,95754.0,0.3608]
[1733248159359,0.0655,95769.0,95766.0,0.052191]
[1733248159567,0.11769,95769.0,95768.0,0.052231]
[1733248159860,0.11769,95769.0,95768.0,4e-05]
[1733248160064,0.21381856,95769.0,95768.0,4e-05]
[1733248160564,0.21381856,95769.0,95768.0,0.052231]
[1733248161465,0.11769,95769.0,95768.0,0.060231]
[1733248161760,0.16163407,95769.0,95768.0,0.060231]
[1733248162059,0.11769,95769.0,95768.0,0.060231]
[1733248162263,0.11769,95769.0,95768.0,0.069231]
[1733248162458,0.21382155,95769.0,95768.0,0.069231]
[1733248162855,0.11769,95769.0,95768.0,0.069231]
[1733248163064,0.11769,95769.0,95768.0,0.01704]
[1733248163559,0.052198,95754.0,95739.0,0.14928]
[1733248163756,0.052198,95754.0,95753.0,0.052199]
[1733248163951,0.052198,95754.0,95743.0,0.3608]
[1733248163952,0.201476,95759.0,95743.0,0.3608]
[1733248164154,0.0655,95769.0,95756.0,0.052197]
[1733248164155,0.052197,95757.0,95756.0,0.052197]
[1733248164657,0.052197,95757.0,95746.0,0.02090809]
[1733248164658,0.052198,95755.0,95754.0,0.052198]
[1733248165063,0.3608,95760.0,95745.0,0.001]
[1733248165366,0.413002,95749.0,95748.0,0.052201]
[1733248166668,0.417002,95749.0,95748.0,0.001]
[1733248167251,0.417002,95749.0,95748.0,0.053202]
[1733248167866,0.3648,95749.0,95748.0,0.053202]
[1733248168658,0.417001,95749.0,95748.0,0.053202]
[1733248169063,0.417001,95749.0,95748.0,0.08404429]
[1733248170362,0.417001,95749.0,95748.0,0.053202]
[1733248170562,0.417001,95749.0,95748.0,0.001]
[1733248172958,0.449901,95749.0,95748.0,0.001]
[1733248173362,0.089101,95749.0,95748.0,0.001]
[1733248173965,0.238141,95749.0,95748.0,0.001]
[1733248174263,0.089101,95749.0,95748.0,0.001]
[1733248174569,0.089101,95749.0,95748.0,0.053202]
[1733248174570,0.238141,95749.0,95748.0,0.053202]
[1733248176068,0.238141,95749.0,95748.0,0.001]
[1733248176269,0.238141,95749.0,95748.0,0.053202]
[1733248178563,0.238141,95749.0,95748.0,0.001]
[1733248181166,0.33429871,95749.0,95748.0,0.001]
[1733248181363,0.44665789,95749.0,95748.0,0.001]
[1733248181559,0.5813945,95749.0,95748.0,0.001]
[1733248181759,0.67755221,95749.0,95748.0,0.001]
[1733248181960,0.64632208,95749.0,95748.0,0.053202]
[1733248182172,0.64632208,95749.0,95748.0,0.001]
[1733248182567,0.33429871,95749.0,95748.0,0.001]
[1733248184073,0.238141,95749.0,95748.0,0.001]
[1733248184282,0.69375288,95749.0,95748.0,0.001]
[1733248184470,0.44665608,95749.0,95748.0,0.001]
[1733248184966,0.052212,95729.0,95728.0,0.062712]
[1733248185271,0.052205,95742.0,95733.0,0.05221]
[1733248185272,0.14908,95734.0,95733.0,0.05221]
[1733248185469,0.09615726,95734.0,95733.0,0.05221]
[1733248185675,0.09615726,95734.0,95733.0,0.41305]
[1733248186374,0.31236079,95734.0,95733.0,0.41305]
[1733248186763,0.09615726,95736.0,95735.0,0.052209]
[1733248186964,0.14836526,95736.0,95735.0,0.052209]
[1733248187172,0.14836526,95736.0,95735.0,0.052249]
[1733248187673,0.14836526,95736.0,95735.0,4e-05]
[1733248188372,0.15236526,95736.0,95735.0,4e-05]
[1733248188571,0.15536526,95736.0,95735.0,4e-05]
[1733248188869,0.15836526,95736.0,95735.0,0.00104]
[1733248189068,0.062208,95736.0,95735.0,0.00104]
[1733248190274,0.818088,95736.0,95735.0,0.00104]
[1733248190468,0.818088,95736.0,95715.0,0.0428]
[1733248190469,0.052219,95716.0,95715.0,0.0105]
[1733248190767,0.052226,95706.0,95705.0,0.052225]
[1733248191072,0.201306,95706.0,95705.0,0.052225]
[1733248191772,0.14908,95706.0,95705.0,0.052225]
[1733248191972,0.15008,95706.0,95705.0,0.060225]
[1733248192271,0.202305,95706.0,95705.0,0.065225]
[1733248192465,0.201305,95706.0,95705.0,0.062225]
[1733248192660,0.14908,95706.0,95705.0,0.062225]
[1733248192870,0.3608,95712.0,95705.0,0.01]
[1733248193069,0.3608,95712.0,95711.0,0.052222]
[1733248193264,0.50988,95712.0,95711.0,0.052262]
[1733248193464,0.562101,95712.0,95711.0,0.052262]
[1733248194869,0.562101,95712.0,95711.0,0.054262]
[1733248195171,0.562101,95712.0,95711.0,0.056262]
[1733248195474,0.3608,95712.0,95711.0,0.056262]
[1733248195678,0.14908,95712.0,95711.0,0.056262]
[1733248196068,0.0302,95715.0,95714.0,0.05222]
[1733248196375,0.14908,95715.0,95714.0,0.05226]
[1733248197371,0.052219,95718.0,95714.0,0.00104]
[1733248197670,0.052219,95718.0,95717.0,0.052259]
[1733248197873,0.201099,95718.0,95717.0,0.052259]
[1733248198583,0.3608,95721.0,95720.0,0.052217]
[1733248198881,0.50968,95721.0,95720.0,0.052257]
[1733248200280,0.561896,95721.0,95720.0,0.052257]
[1733248201077,0.561896,95721.0,95720.0,4e-05]
[1733248201483,0.052228,95700.0,95699.0,8.883e-05]
[1733248201777,0.201148,95700.0,95699.0,8.883e-05]
[1733248202782,0.052236,95685.0,95684.0,0.052236]
[1733248202973,0.201156,95685.0,95684.0,0.052236]
[1733248203672,0.3608,95687.0,95686.0,0.052235]
[1733248203872,0.561955,95687.0,95686.0,0.052235]
[1733248204184,0.41311643,95687.0,95686.0,4e-05]
[1733248204382,0.56203643,95687.0,95686.0,4e-05]
[1733248205180,0.56203643,95687.0,95686.0,0.00204]
[1733248205373,0.56203643,95687.0,95686.0,0.00404]
[1733248206371,0.92283643,95687.0,95686.0,0.00404]
[1733248206780,0.92283643,95687.0,95664.0,0.0105]
[1733248206781,0.052246,95667.0,95666.0,9.09e-05]
[1733248206978,0.957166,95667.0,95666.0,9.09e-05]
[1733248207180,0.90492,95667.0,95666.0,9.09e-05]
[1733248207380,0.957166,95667.0,95666.0,9.09e-05]
[1733248207976,0.957166,95667.0,95666.0,0.0030909]
[1733248208183,0.957166,95667.0,95666.0,0.0070909]
[1733248209089,0.756,95667.0,95666.0,0.0070909]
[1733248209286,0.90496,95667.0,95666.0,0.0070909]
[1733248209688,0.54416,95667.0,95666.0,0.0070909]
[1733248209995,0.3952,95667.0,95666.0,0.0070909]